bitfinex/quotes_ETHUSD_20240822
["timestamp","ask_amount","ask_price","bid_price","bid_amount"]
[1724337985136,2.3212,2610.6,2610.5,3e-07]
[1724337985605,6.15173,2610.6,2610.5,3e-07]
[1724337985807,10.05827049,2610.6,2610.5,3e-07]
[1724337986498,6.15173,2610.6,2610.5,3e-07]
[1724337987136,9.98226,2610.6,2610.5,3e-07]
[1724337990029,9.98226,2610.6,2609.2,2.3299]
[1724337990030,3.83179,2609.8,2608.7,7.57383754]
[1724337990227,3.83179,2609.8,2607.8,3.9619503]
[1724337990228,3.83259,2609.2,2608.4,3.83376]
[1724337990419,3.83284,2609.1,2608.5,4.43422424]
[1724337990624,3.83298,2609.0,2608.4,3.83367]
[1724337991338,3.83285,2609.1,2608.5,3.8336]
[1724337991510,2.77,2609.9,2608.6,2.4156]
[1724337991712,2.2737,2610.0,2609.6,3.832]
[1724337991956,2.2737,2610.0,2608.7,4.339661]
[1724337991957,6.10521,2610.0,2609.2,3.83252]
[1724337992175,3.83173,2609.8,2609.3,3.8324]
[1724337992310,6.10521,2610.0,2609.3,3.8324]
[1724337992510,2.2737,2610.0,2609.4,3.8322]
[1724337992748,3.8309,2610.4,2609.8,3.83168]
[1724337992918,3.83124,2610.2,2609.5,3.83206]
[1724337993234,3.83098,2610.3,2609.5,3.83205]
[1724337993435,3.83098,2610.3,2609.4,3.83221]
[1724337993637,3.83123,2610.2,2609.6,3.83189]
[1724337993962,3.83098,2610.3,2609.7,3.83185]
[1724337994249,3.83098,2610.3,2609.4,0.6701162]
[1724337994250,10.01757,2610.5,2609.9,3.83155]
[1724337994414,6.18675,2610.5,2609.8,3.83159]
[1724337994748,3.83098,2610.3,2609.8,3.83159]
[1724337994955,6.18675,2610.5,2609.4,0.6701162]
[1724337995158,2.356,2610.5,2610.1,3.83126]
[1724337995339,2.356,2610.5,2610.0,3.83139]
[1724337995650,6.1867,2610.5,2609.9,3.83147]
[1724337996059,6.1867,2610.5,2609.9,7.66294]
[1724337996356,6.1867,2610.5,2609.7,3.83178]
[1724337996548,3.83113,2610.2,2609.7,3.83177]
[1724337996721,0.07601049,2610.1,2609.5,7.66413]
[1724337996915,3.90728049,2610.1,2609.6,1.13342462]
[1724337997257,3.90728049,2610.1,2609.4,3.6701162]
[1724337997258,7.73869049,2610.1,2609.4,7.5023862]
[1724337997427,0.07601049,2610.1,2609.5,3.83215]
[1724337997761,2.356,2610.5,2610.2,3.8311]
[1724337998049,3.83048,2610.7,2610.2,3.8311]
[1724337998224,3.8303,2610.8,2610.2,3.8311]
[1724337998430,2.4199,2610.7,2610.2,3.83104]
[1724337998621,2.4199,2610.7,2609.5,7.38]
[1724337998622,2.4199,2610.7,2608.4,4.23349725]
[1724337998623,3.83267,2609.2,2608.4,4.23349725]
[1724337998816,3.83303,2608.9,2608.5,0.42334973]
[1724337999018,0.07601049,2608.8,2608.5,0.42334973]
[1724337999246,3.83282,2609.1,2608.5,3.83361]
[1724337999651,3.83282,2609.1,2608.3,3.83379]
[1724337999957,2.4199,2609.6,2608.7,3.83332]
[1724337999958,7.66505,2609.3,2608.7,3.83332]
[1724338000126,3.83222,2609.5,2608.4,3.83373]
[1724338000327,3.83252,2609.3,2608.7,3.83326]
[1724338000534,0.07601049,2609.2,2608.7,3.83326]
[1724338001056,3.83252,2609.3,2608.7,3.83324]
[1724338001354,3.83252,2609.3,2608.5,0.42336552]
[1724338001355,3.83215,2609.5,2609.0,3.83286]
[1724338001560,2.49591049,2609.6,2608.9,3.83291]
[1724338001716,2.49591049,2609.6,2609.1,3.83266]
[1724338001717,6.32793049,2609.6,2609.1,3.83266]
[1724338002025,2.4199,2609.6,2609.1,3.83266]
[1724338003217,3.83218,2609.5,2608.9,3.83291]
[1724338003417,3.83144,2610.0,2609.2,3.83246]
[1724338003418,3.83163,2609.9,2609.2,3.83246]
[1724338003964,3.83186,2609.7,2609.2,3.83246]
[1724338004182,2.4764,2610.0,2609.0,3.83274]
[1724338004349,3.83215,2609.5,2609.0,3.83274]
[1724338004743,3.83195,2609.7,2609.0,3.83274]
[1724338005048,3.83257,2609.3,2607.8,3.9619503]
[1724338005386,3.83376,2608.4,2607.8,3.9620203]
[1724338005686,0.07601049,2608.3,2607.8,3.9620203]
[1724338005889,0.07601049,2608.3,2607.8,8.82476733]
[1724338006090,0.07601049,2608.3,2607.9,3.83448]
[1724338006253,3.83356,2608.6,2608.0,3.83435]
[1724338007181,3.83356,2608.6,2608.0,7.66853]
[1724338007489,3.83356,2608.6,2608.1,3.83418]
[1724338008243,6.80535,2609.2,2608.1,3.83418]
[1724338008244,3.83285,2609.1,2608.1,0.766844]
[1724338008494,2.4086,2609.7,2609.2,3.83251]
[1724338008646,2.4086,2609.7,2609.2,7.66501]
[1724338008981,2.4086,2609.7,2609.3,3.83235]
[1724338009544,3.83087,2610.4,2609.3,3.83235]
[1724338009545,2.4086,2610.1,2609.5,3.83214]
[1724338009743,2.4086,2610.1,2609.3,0.766496]
[1724338009744,2.4086,2610.1,2609.3,7.66478]
[1724338009940,2.4086,2610.1,2608.8,3.0]
[1724338009941,2.4086,2610.1,2609.6,3.83191]
[1724338010783,2.4086,2610.1,2609.6,3.8319]
[1724338011089,2.4086,2610.1,2608.8,3.0]
[1724338011090,3.83185,2609.7,2609.0,3.8328]
[1724338011383,7.66486,2609.4,2608.8,6.83308]
[1724338011584,2.2777,2609.5,2608.8,6.83308]
[1724338011585,2.2777,2609.5,2608.8,4.55808468]
[1724338011814,2.2777,2609.5,2609.0,3.83281]
[1724338012187,2.2777,2609.5,2609.0,7.66561]
[1724338012399,3.83179,2609.8,2609.1,3.8326]
[1724338012592,3.83179,2609.8,2609.0,3.8328]
[1724338012593,3.83194,2609.7,2609.2,3.83257]
[1724338012761,3.83204,2609.6,2609.0,7.66557]
[1724338012966,3.83204,2609.6,2609.0,3.83277]
[1724338013310,3.83215,2609.5,2609.0,3.83277]
[1724338013603,3.83215,2609.5,2608.8,4.55808468]
[1724338013777,2.2777,2609.9,2608.6,3.83337]
[1724338013778,7.66538,2609.2,2608.6,3.83337]
[1724338013981,3.83283,2609.1,2608.6,3.83337]
[1724338014411,3.83267,2609.2,2608.6,3.83337]
[1724338014580,2.2777,2609.3,2608.8,3.83316]
[1724338014904,7.6648,2609.4,2608.8,3.83316]
[1724338014905,3.83239,2609.4,2608.8,3.83309]
[1724338015102,3.83246,2609.3,2608.8,3.83309]
[1724338015564,2.2777,2609.6,2609.1,3.83265]
[1724338016200,11.22159,2609.9,2608.9,3.83297]
[1724338016402,2.4083,2610.0,2608.8,10.529148]
[1724338016606,3.83194,2609.7,2609.2,3.8325]
[1724338016814,3.83178,2609.8,2609.3,3.83244]
[1724338017028,3.83188,2609.7,2609.2,3.83247]
[1724338017358,3.83178,2609.8,2609.2,3.83247]
[1724338017543,3.83178,2609.8,2608.8,7.38]
[1724338017544,0.05,2609.4,2608.8,7.38]
[1724338017862,2.3388,2609.6,2607.8,0.1273803]
[1724338017863,3.83369,2608.5,2607.8,0.1273803]
[1724338018059,2.3388,2608.7,2607.8,0.1273803]
[1724338018060,3.8339,2608.4,2607.8,0.1273803]
[1724338018272,3.834,2608.3,2607.8,0.1273803]
[1724338018420,3.8339,2608.4,2607.8,0.1273803]
[1724338018626,3.83355,2608.6,2607.9,3.83441]
[1724338018831,0.55,2608.5,2607.9,3.83441]
[1724338019127,2.3388,2608.7,2607.9,0.39617903]
[1724338019336,6.1722,2608.7,2608.1,3.83418]
[1724338019766,6.1722,2608.7,2608.0,7.66858]
[1724338020298,2.3388,2608.7,2608.0,3.83424]
[1724338020585,2.3388,2608.7,2607.8,0.1273803]
[1724338020724,0.55,2608.6,2607.8,0.1273803]
[1724338020930,4.38357,2608.6,2608.0,3.83429]
[1724338021137,0.55,2608.6,2607.8,0.52382033]
[1724338021361,2.3388,2608.7,2608.1,3.83412]
[1724338021567,2.3388,2608.7,2608.2,3.83402]
[1724338022331,2.3388,2608.7,2608.4,3.83369]
[1724338022561,2.4178,2609.2,2608.4,0.76676]
[1724338022872,3.83277,2609.1,2608.4,3.83366]
[1724338023367,2.4178,2609.2,2608.8,3.83316]
[1724338023542,2.4178,2609.2,2608.9,3.83291]
[1724338023742,6.25042,2609.2,2608.7,3.83324]
[1724338024238,10.08311,2609.2,2608.7,3.83324]
[1724338024442,10.08311,2609.2,2608.5,3.83353]
[1724338024443,3.83282,2609.1,2608.5,3.83353]
[1724338024644,3.83282,2609.1,2607.8,0.1273803]
[1724338024645,9.9707,2607.9,2607.8,0.1273803]
[1724338024873,9.9707,2607.9,2606.6,5.03751136]
[1724338024874,9.9707,2607.9,2606.4,1.20121136]
[1724338024875,3.83621,2606.8,2606.4,1.20121136]
[1724338025175,3.83621,2606.8,2606.0,3.83718]
[1724338025176,3.83627,2606.7,2606.3,0.60131675]
[1724338025370,3.83621,2606.8,2606.0,3.83718]
[1724338025371,3.83644,2606.6,2606.0,3.83718]
[1724338025666,3.83621,2606.8,2606.0,3.83718]
[1724338025667,3.83621,2606.8,2606.1,4.220828]
[1724338025968,3.83621,2606.8,2606.1,0.383718]
[1724338026178,3.83646,2606.6,2605.3,0.80080757]
[1724338026478,2.3017,2606.9,2605.3,0.80080757]
[1724338026479,2.3017,2606.9,2605.5,2.3758]
[1724338026648,2.3017,2606.9,2606.4,3.8366]
[1724338026827,3.83555,2607.2,2606.6,3.83636]
[1724338027276,3.83569,2607.1,2606.4,3.8366]
[1724338027572,6.10561,2607.3,2606.6,3.83641]
[1724338027573,9.94112,2607.3,2606.6,3.83641]
[1724338027870,3.0,2607.5,2606.4,4.22026]
[1724338027871,3.0,2607.5,2607.0,3.83582]
[1724338028055,5.3092,2607.8,2606.4,0.38366]
[1724338028257,2.3092,2607.8,2607.0,3.83577]
[1724338028470,2.3092,2607.8,2607.3,3.83536]
[1724338028899,2.3092,2607.8,2607.3,3.83537]
[1724338029043,6.60425,2608.1,2607.5,3.83507]
[1724338029044,2.77,2608.1,2607.5,3.83507]
[1724338029245,6.6042,2608.1,2607.5,3.83507]
[1724338029445,2.77,2608.1,2607.1,3.8356]
[1724338029646,3.83444,2608.0,2607.1,0.61263]
[1724338029834,3.83441,2608.0,2607.4,3.83519]
[1724338030182,3.83441,2608.0,2607.0,3.0]
[1724338030183,2.4,2607.3,2605.9,0.80080757]
[1724338030392,3.83683,2606.4,2605.7,3.83763]
[1724338030560,3.83681,2606.4,2605.5,3.83794]
[1724338030759,7.67362,2606.4,2605.7,3.8377]
[1724338031002,3.83681,2606.4,2605.8,3.83749]
[1724338031290,3.83606,2606.9,2606.1,3.83704]
[1724338031607,2.3747,2607.0,2606.0,3.83729]
[1724338031608,3.83643,2606.6,2606.0,3.83729]
[1724338031752,3.83628,2606.7,2606.1,3.83713]
[1724338031954,2.3747,2607.0,2606.0,0.767483]
[1724338032294,3.8369,2606.3,2605.7,6.83763]
[1724338032451,3.83664,2606.5,2605.7,7.94519947]
[1724338032777,0.55,2606.9,2605.7,7.94519947]
[1724338032778,3.83632,2606.7,2605.7,4.10756947]
[1724338033017,4.38604,2606.9,2606.3,3.83677]
[1724338033018,3.83604,2606.9,2606.3,3.83677]
[1724338033435,3.83575,2607.1,2606.5,3.83647]
[1724338033635,3.83512,2607.5,2606.5,0.383647]
[1724338033865,3.83524,2607.4,2606.9,3.83585]
[1724338034050,3.83519,2607.5,2606.9,3.83585]
[1724338034777,7.67038,2607.5,2606.9,3.83585]
[1724338035075,3.83527,2607.4,2606.9,3.83585]
[1724338035484,3.83527,2607.4,2606.8,3.83605]
[1724338035789,3.83488,2607.7,2607.1,3.83566]
[1724338036287,3.83735,2606.0,2605.5,0.40011473]
[1724338036586,3.08299222,2607.6,2605.2,0.1273803]
[1724338036587,2.44606227,2605.9,2605.2,0.1273803]
[1724338036741,3.83718,2606.1,2605.2,0.1273803]
[1724338036742,3.83657,2606.5,2605.9,3.8373]
[1724338037185,3.0,2607.0,2605.2,0.1273803]
[1724338037341,3.83635,2606.7,2605.8,7.67501]
[1724338037541,3.83694,2606.3,2605.7,3.83763]
[1724338037771,3.83661,2606.5,2605.2,3.9658003]
[1724338037991,3.83661,2606.5,2605.9,3.83735]
[1724338038215,0.55,2606.9,2605.9,3.83735]
[1724338038364,3.83669,2606.5,2605.3,3.39658003]
[1724338038563,3.83669,2606.5,2605.9,3.83733]
[1724338038809,3.83635,2606.7,2606.0,3.83725]
[1724338039016,3.83635,2606.7,2606.1,3.83706]
[1724338039166,3.83635,2606.7,2605.4,3.83816]
[1724338039167,3.83666,2606.5,2605.9,3.83735]
[1724338039482,3.83666,2606.5,2605.7,3.83765]
[1724338039483,3.83665,2606.5,2605.7,3.83765]
[1724338039802,7.6733,2606.5,2605.9,3.83742]
[1724338040009,3.8367,2606.4,2605.9,3.83742]
[1724338040370,3.83665,2606.5,2605.9,3.83735]
[1724338040710,3.83631,2606.7,2606.0,3.83721]
[1724338040892,3.83631,2606.7,2606.0,3.83728]
[1724338041097,3.83631,2606.7,2605.8,0.383765]
[1724338041098,2.438,2606.8,2605.8,4.221255]
[1724338041334,3.8369,2606.3,2605.6,3.83779]
[1724338041466,3.8369,2606.3,2605.6,7.67556]
[1724338041783,6.27416,2606.8,2605.2,0.1273803]
[1724338041784,6.27441,2606.6,2605.2,0.1273803]
[1724338042116,5.458,2606.7,2605.2,0.1273803]
[1724338042117,5.458,2606.7,2605.3,3.8383]
[1724338042118,2.438,2605.8,2605.3,3.8383]
[1724338042412,3.83753,2605.9,2605.3,3.8383]
[1724338042583,3.83723,2606.1,2605.4,3.83807]
[1724338042782,3.83723,2606.1,2605.5,7.67587]
[1724338043132,3.83723,2606.1,2605.3,0.39656803]
[1724338043133,3.83723,2606.1,2605.4,3.83816]
[1724338043415,3.83738,2606.0,2605.3,4.23475803]
[1724338043611,3.83738,2606.0,2605.3,8.07300803]
[1724338043813,3.83732,2606.0,2605.4,3.83811]
[1724338044107,3.83732,2606.0,2605.4,4.65813483]
[1724338044311,3.83732,2606.0,2605.4,0.82002483]
[1724338044612,3.83768,2605.8,2605.3,3.83831]
[1724338044781,3.83768,2605.8,2605.2,3.9657703]
[1724338044983,3.83768,2605.8,2605.3,3.83823]
[1724338045311,3.83738,2606.0,2605.4,3.83817]
[1724338045520,3.83832,2605.3,2605.2,0.1273803]
[1724338045819,7.67664,2605.3,2605.2,0.1273803]
[1724338045982,8.22664,2605.3,2605.2,0.1273803]
[1724338046176,8.22664,2605.3,2604.8,0.1183503]
[1724338046177,3.83891,2604.9,2604.8,0.1183503]
[1724338046405,7.67782,2604.9,2604.8,0.1183503]
[1724338046605,7.67747,2605.1,2604.8,0.1183503]
[1724338046822,3.8387,2605.1,2604.8,0.1183503]
[1724338047023,6.32869,2605.3,2604.8,0.1183503]
[1724338047224,3.8387,2605.1,2604.8,0.1183503]
[1724338047938,3.83891,2604.9,2604.8,0.1183503]
[1724338048197,2.4903,2605.3,2604.8,0.1183503]
[1724338048361,3.83765,2605.8,2605.0,7.67731]
[1724338048362,3.83767,2605.8,2605.0,7.67731]
[1724338048511,3.83767,2605.8,2605.0,3.83863]
[1724338048843,3.83767,2605.8,2605.2,3.83846]
[1724338049009,2.77,2606.0,2605.2,3.83846]
[1724338049211,3.83776,2605.7,2605.1,3.83853]
[1724338049478,3.83773,2605.8,2605.2,3.83845]
[1724338049606,6.60732,2606.0,2604.9,3.83888]
[1724338049802,2.77,2606.0,2605.6,3.83786]
[1724338050018,2.3827,2606.2,2605.6,3.83779]
[1724338050218,3.83711,2606.2,2605.6,3.83778]
[1724338050478,3.83723,2606.1,2605.6,3.83786]
[1724338050608,3.83678,2606.4,2605.7,3.83764]
[1724338050953,3.83671,2606.4,2605.1,3.83859]
[1724338051169,3.83671,2606.4,2605.0,5.3879]
[1724338051307,3.83702,2606.2,2605.7,3.83772]
[1724338051735,5.1224,2606.6,2605.5,3.83789]
[1724338051948,3.83738,2606.0,2605.4,3.83813]
[1724338052168,3.83782,2605.7,2605.1,3.83854]
[1724338052341,3.83782,2605.7,2604.7,3.83916]
[1724338052525,3.83782,2605.7,2605.0,3.83866]
[1724338053104,3.83672,2606.4,2604.9,4.27419523]
[1724338053325,3.83672,2606.4,2605.4,3.8381]
[1724338053528,3.83703,2606.2,2604.9,0.43532523]
[1724338053767,3.83823,2605.4,2604.8,3.9573203]
[1724338053926,6.3365,2606.2,2604.8,3.9573203]
[1724338053927,3.83849,2605.2,2604.8,0.1183503]
[1724338054366,3.83878,2605.0,2604.8,0.1183503]
[1724338054563,3.83849,2605.2,2604.8,0.1183503]
[1724338054770,3.83826,2605.4,2604.8,0.1183503]
[1724338054968,2.3883,2605.5,2604.8,0.1183503]
[1724338055266,3.83796,2605.6,2604.9,3.83882]
[1724338055466,7.67596,2605.6,2605.0,3.83868]
[1724338055651,3.83796,2605.6,2605.0,3.83868]
[1724338055858,3.8382,2605.4,2604.8,3.9573203]
[1724338056068,3.8382,2605.4,2604.9,3.83889]
[1724338056241,6.60796,2605.6,2604.8,0.1183503]
[1724338056572,3.8388,2605.0,2604.8,0.1183503]
[1724338056873,3.83871,2605.1,2604.8,0.1183503]
[1724338057030,3.83859,2605.2,2604.8,0.1183503]
[1724338057759,7.67684,2605.3,2604.8,0.1183503]
[1724338057943,3.83849,2605.2,2604.8,0.1183503]
[1724338058557,2.77,2605.6,2604.8,3.9573103]
[1724338058558,3.83821,2605.4,2604.8,3.9573103]
[1724338058759,3.83782,2605.7,2605.1,3.83853]
[1724338058932,6.22582,2605.9,2604.8,0.51408133]
[1724338059133,3.83767,2605.8,2605.1,3.8385]
[1724338059471,3.83767,2605.8,2605.2,3.83834]
[1724338059675,7.67537,2605.8,2605.3,3.83831]
[1724338059878,3.83767,2605.8,2605.1,3.8385]
[1724338060179,3.83767,2605.8,2605.1,4.22235]
[1724338060345,3.83747,2605.9,2605.3,3.83824]
[1724338060682,3.83747,2605.9,2604.8,0.51408133]
[1724338060683,3.83829,2605.4,2604.8,0.51408133]
[1724338060973,3.83793,2605.6,2605.1,3.83859]
[1724338061395,3.83793,2605.6,2605.0,3.83872]
[1724338061538,3.83793,2605.6,2604.9,3.83883]
[1724338061733,3.83738,2606.0,2605.3,3.83829]
[1724338062087,3.83738,2606.0,2604.8,0.1183503]
[1724338062088,6.32459,2605.5,2604.8,0.1183503]
[1724338062238,6.32459,2605.5,2604.9,3.83889]
[1724338062558,3.83837,2605.3,2604.8,0.1183503]
[1724338062750,3.83831,2605.4,2604.8,3.9574003]
[1724338063135,3.83834,2605.3,2604.8,0.1183503]
[1724338063330,3.83856,2605.2,2604.8,0.1183503]
[1724338063574,3.83862,2605.1,2604.8,0.1183503]
[1724338064060,7.6768,2605.3,2604.8,0.1183503]
[1724338064261,3.83848,2605.2,2604.8,0.1183503]
[1724338064463,2.4865,2605.5,2604.8,0.1183503]
[1724338064464,3.83886,2605.0,2604.8,0.1183503]
[1724338065083,3.83855,2605.2,2604.8,0.1183503]
[1724338065393,3.8385,2605.2,2604.8,0.1183503]
[1724338066351,2.4773,2605.5,2604.8,0.1183503]
[1724338066561,3.8387,2605.1,2604.8,0.1183503]
[1724338066853,3.83891,2604.9,2604.8,0.1183503]
[1724338067900,3.8387,2605.1,2604.8,0.1183503]
[1724338068106,3.83877,2605.0,2604.8,0.1183503]
[1724338068706,3.8387,2605.1,2604.8,0.1183503]
[1724338069083,3.8384,2605.3,2604.8,0.1183503]
[1724338069281,3.0,2605.9,2605.2,3.83846]
[1724338069282,2.2582,2605.9,2605.2,3.83846]
[1724338069487,3.83775,2605.7,2605.0,3.83866]
[1724338069682,2.2582,2605.9,2604.8,3.9572903]
[1724338069894,3.83827,2605.4,2604.8,0.1183503]
[1724338070098,3.83863,2605.1,2604.8,0.1183503]
[1724338071041,7.67739,2605.1,2604.8,0.1183503]
[1724338071324,2.2582,2605.2,2604.8,0.1183503]
[1724338071633,3.83891,2604.9,2604.8,0.1183503]
[1724338071923,3.83876,2605.1,2604.8,0.1183503]
[1724338071924,3.83871,2605.1,2604.8,0.1183503]
[1724338072210,3.83847,2605.2,2604.8,0.1183503]
[1724338072414,3.83805,2605.5,2604.8,0.1183503]
[1724338072582,3.83805,2605.5,2604.8,3.9572903]
[1724338072967,3.83836,2605.3,2604.8,0.1183503]
[1724338073511,3.8382,2605.4,2604.8,3.9573803]
[1724338073710,3.8381,2605.5,2604.8,4.73698633]
[1724338073870,2.4919,2605.6,2605.0,3.83867]
[1724338074076,3.8378,2605.7,2605.1,3.83861]
[1724338074373,11.60381,2605.9,2604.8,4.73699633]
[1724338074374,11.60381,2605.9,2604.8,0.89801633]
[1724338074606,3.83721,2606.1,2605.4,3.83815]
[1724338074909,3.83721,2606.1,2605.2,3.83839]
[1724338074910,3.83746,2605.9,2605.2,3.83836]
[1724338075108,3.83746,2605.9,2605.2,4.471326]
[1724338075308,3.83723,2606.1,2605.4,3.83807]
[1724338075517,3.83739,2606.0,2605.4,3.83807]
[1724338075899,3.83739,2606.0,2605.4,7.67616]
[1724338076100,3.83739,2606.0,2605.4,3.83807]
[1724338076832,3.83739,2606.0,2605.5,3.83802]
[1724338077004,4.43835359,2606.5,2605.6,3.83776]
[1724338077005,3.83665,2606.5,2605.6,3.83776]
[1724338077329,3.83665,2606.5,2606.0,3.83729]
[1724338077540,3.83604,2606.9,2605.8,2.382]
[1724338077833,3.83604,2606.9,2606.2,3.83691]
[1724338078037,3.83604,2606.9,2606.0,3.83717]
[1724338078207,3.83628,2606.7,2606.1,3.83706]
[1724338078532,3.83604,2606.9,2606.2,3.8369]
[1724338078695,7.67214,2606.9,2606.2,3.8369]
[1724338078896,3.83604,2606.9,2606.2,3.8369]
[1724338079232,7.67212,2606.9,2606.2,3.8369]
[1724338079538,3.83604,2606.9,2606.2,7.6738]
[1724338079740,3.83604,2606.9,2606.2,3.8369]
[1724338080035,7.67215,2606.9,2606.2,3.8369]
[1724338080235,2.2692,2607.1,2606.0,3.83726]
[1724338080390,3.83643,2606.6,2606.0,3.83726]
[1724338080591,2.2692,2607.1,2606.0,3.83726]
[1724338080824,3.83638,2606.7,2606.0,3.83726]
[1724338081028,3.83638,2606.7,2606.1,3.83713]
[1724338081335,3.83679,2606.4,2605.9,3.83744]
[1724338081490,3.83645,2606.6,2605.9,3.83744]
[1724338081806,3.83645,2606.6,2605.8,3.83753]
[1724338081807,3.83681,2606.4,2605.5,2.4636]
[1724338082008,3.83681,2606.4,2605.8,3.83749]
[1724338082204,3.83681,2606.4,2605.8,3.83746]
[1724338082416,3.83681,2606.4,2605.6,3.83777]
[1724338082698,3.83716,2606.1,2605.6,3.83777]
[1724338083101,3.8369,2606.3,2605.7,3.83773]
[1724338083327,3.83713,2606.2,2605.2,3.83841]
[1724338083554,3.83713,2606.2,2605.4,3.83817]
[1724338083555,3.83736,2606.0,2605.4,3.83817]
[1724338083734,7.67476,2606.0,2605.4,3.83817]
[1724338083935,3.83709,2606.2,2605.6,3.83785]
[1724338084319,7.39,2606.3,2605.6,3.83777]
[1724338084320,11.22697,2606.3,2605.6,3.83777]
[1724338084527,3.83703,2606.2,2605.6,3.83777]
[1724338084729,3.83703,2606.2,2605.4,3.83816]
[1724338084927,3.83753,2605.9,2605.4,3.83816]
[1724338085140,3.83739,2606.0,2605.4,3.83816]
[1724338085333,3.83739,2606.0,2605.2,3.83838]
[1724338085334,3.83771,2605.8,2605.2,3.83843]
[1724338085533,3.83771,2605.8,2605.3,3.83821]
[1724338085948,3.83771,2605.8,2605.2,3.83843]
[1724338086296,3.83789,2605.6,2605.1,6.54851]
[1724338086431,7.67586,2605.6,2605.0,3.83867]
[1724338086631,7.39,2606.3,2605.0,3.83867]
[1724338086632,7.67539,2605.8,2605.0,3.83867]
[1724338086836,3.83767,2605.8,2605.0,3.83867]
[1724338087045,3.83811,2605.5,2604.8,10.55719111]
[1724338087241,3.83811,2605.5,2604.9,3.83879]
[1724338087572,3.83811,2605.5,2605.0,3.83871]
[1724338087782,7.67625,2605.5,2604.9,3.83879]
[1724338087951,3.83811,2605.5,2604.9,3.83879]
[1724338088149,3.83811,2605.5,2605.0,3.83873]
[1724338088506,7.67624,2605.5,2604.9,3.83879]
[1724338088688,3.83811,2605.5,2604.9,3.83879]
[1724338088839,3.83811,2605.5,2605.0,3.83863]
[1724338089189,3.83791,2605.6,2605.1,3.83861]
[1724338089393,3.83781,2605.7,2605.1,3.83852]
[1724338089575,3.8378,2605.7,2604.9,2.3285]
[1724338089890,3.8378,2605.7,2605.0,4.08343503]
[1724338090185,3.83841,2605.3,2604.8,3.9573203]
[1724338090387,3.83813,2605.5,2604.8,3.9573203]
[1724338090537,3.83813,2605.5,2605.0,3.83874]
[1724338090876,3.83789,2605.6,2605.1,3.83858]
[1724338091077,5.0944,2605.9,2605.1,3.83858]
[1724338091078,2.77,2605.9,2605.4,3.83805]
[1724338091249,3.83759,2605.8,2605.3,3.8383]
[1724338091581,6.60752,2605.9,2605.4,3.83815]
[1724338092036,3.83759,2605.8,2605.2,3.83833]
[1724338092792,3.83759,2605.8,2605.2,7.67671]
[1724338093076,3.83759,2605.8,2605.2,3.83833]
[1724338093296,3.83781,2605.7,2605.2,3.83833]
[1724338093605,3.83781,2605.7,2605.0,3.83866]
[1724338093749,3.83781,2605.7,2605.3,3.83832]
[1724338093951,6.60753,2605.9,2605.0,0.63385103]
[1724338093952,2.77,2605.9,2605.7,3.8376]
[1724338094281,2.77,2605.9,2605.6,3.83786]
[1724338094440,2.77,2605.9,2605.5,7.67586]
[1724338094642,2.77,2605.9,2605.5,3.83792]
[1724338094879,6.60747,2605.9,2605.4,3.8381]
[1724338095143,3.83709,2606.2,2605.6,3.8378]
[1724338095479,3.83728,2606.1,2605.6,3.8378]
[1724338095990,3.83709,2606.2,2605.7,3.83765]
[1724338096173,3.8373,2606.0,2605.5,3.83789]
[1724338096786,7.67468,2606.0,2605.5,3.83798]
[1724338096989,3.8373,2606.0,2605.4,6.09534]
[1724338097188,3.8373,2606.0,2605.5,3.83794]
[1724338097399,3.83711,2606.2,2605.4,2.2573]
[1724338097603,3.8373,2606.0,2605.5,3.83795]
[1724338097752,3.83777,2605.7,2605.2,3.8384]
[1724338098082,3.83812,2605.5,2605.0,0.39957011]
[1724338098281,3.83812,2605.5,2605.0,3.83874]
[1724338098452,3.83783,2605.7,2605.0,3.83874]
[1724338098683,3.83767,2605.8,2605.3,3.83821]
[1724338098882,3.83776,2605.7,2605.1,3.83848]
[1724338099081,3.83754,2605.9,2605.2,3.83835]
[1724338099414,12.691,2606.1,2605.5,3.83789]
[1724338099415,16.52824,2606.1,2605.5,3.83789]
[1724338099567,3.8376,2605.8,2605.3,3.83818]
[1724338100203,3.8376,2605.8,2605.3,7.67642]
[1724338100382,3.8376,2605.8,2605.3,3.83818]
[1724338100564,3.8376,2605.8,2605.3,7.67642]
[1724338100764,3.8376,2605.8,2605.3,3.83818]
[1724338100965,3.83786,2605.7,2605.1,7.67701]
[1724338101214,9.13829,2606.1,2605.3,3.83824]
[1724338101215,3.83738,2606.0,2605.3,3.83824]
[1724338101394,5.301,2606.1,2605.3,3.83824]
[1724338101395,3.83766,2605.8,2605.3,3.83824]
[1724338101776,3.83766,2605.8,2605.3,7.67648]
[1724338101986,7.67497,2605.9,2605.4,3.83811]
[1724338102316,3.83745,2605.9,2605.4,3.83811]
[1724338102616,3.83724,2606.1,2605.1,0.8072719]
[1724338102913,3.83724,2606.1,2605.5,3.83788]
[1724338102914,3.83718,2606.1,2605.5,3.83788]
[1724338103120,3.83718,2606.1,2605.6,3.83781]
[1724338103315,7.39,2606.4,2605.9,3.83742]
[1724338103316,11.22679,2606.4,2605.9,3.83742]
[1724338103511,3.83679,2606.4,2605.9,3.83736]
[1724338103673,3.83679,2606.4,2605.9,3.83743]
[1724338103879,3.8365,2606.6,2606.1,3.83714]
[1724338104077,5.2653,2606.7,2606.1,3.83714]
[1724338104078,2.77,2606.7,2606.1,3.83714]
[1724338104279,2.77,2606.7,2606.1,7.6742]
[1724338104280,6.60627,2606.7,2606.1,7.6742]
[1724338104478,3.8362,2606.8,2606.2,3.91370511]